[Event "European Online Club-ch-A 2021"]
[Site "Online"]
[Date "2021.03.27"]
[Round "4.6"]
[White "Mitusov, Semen"]
[Black "Gurel, Ediz"]
[Result "0-1"]
[ECO "B22"]
[WhiteElo "2297"]
[BlackElo "2168"]
[Annotator "NA"]
[PlyCount "82"]
[EventDate "2021.03.27"]
[EventType "team-tourn"]
[EventCountry "NET"]
[SourceTitle "playchess.com"]
[Source "ChessBase"]
[SourceQuality "1"]
[TimeControl "900+5"]

1. e4 {[%emt 0:00:00]} c5 {[%emt 0:00:02]} 2. Nf3 {[%emt 0:00:04]} e6 {[%emt 0:00:01]} 3. c3 {[%emt 0:00:04]} Nf6 {[%emt 0:00:02]} 4. e5 {[%emt 0:00:02]} Nd5 {[%emt 0:00:01]} 5. d4 {[%emt 0:00:02]} cxd4 {[%emt 0:00:01]} 6. cxd4 {[%emt 0:00:03]} d6 {[%emt 0:00:01]} 7. a3 {[%emt 0:00:02]} Bd7 {[%emt 0:00:04]} 8. Bd3 {[%emt 0:00:02]} Bc6 {[%emt 0:00:02]} 9. O-O {[%emt 0:00:03]} Nd7 {[%emt 0:00:02]} 10. Re1 {[%emt 0:00:04]} Rc8 {[%emt 0:00:05]} 11. Nbd2 {[%emt 0:00:03]} dxe5 {[%emt 0:00:39]} 12. dxe5 {[%emt 0:00:03]} Nc5 {[%emt 0:00:20]} 13. Bf1 {[%emt 0:00:04]} Nf4 {[%emt 0:00:43]} 14. Re3 {[%emt 0:02:21]} Be7 {[%emt 0:00:57]} 15. g3 {[%emt 0:00:45]} Nd5 {[%emt 0:00:55]} 16. Re1 {[%emt 0:00:10]} O-O {[%emt 0:00:23]} 17. Nd4 {[%emt 0:00:15]} Bd7 {[%emt 0:01:07]} 18. Ne4 {[%emt 0:00:46]} Nxe4 {[%emt 0:00:31]} 19. Rxe4 {[%emt 0:00:04]} Qb6 {[%emt 0:00:15]} 20. Rg4 {[%emt 0:01:17]} f5 {[%emt 0:00:51]} 21. exf6 {[%emt 0:00:09]} Bxf6 {[%emt 0:00:18]} 22. Bg2 {[%emt 0:00:20]} Kh8 {[%emt 0:00:30]} 23. Re4 {[%emt 0:00:51]} e5 {[%emt 0:00:39]} 24. Nf3 {[%emt 0:00:20]} Bf5 {[%emt 0:02:07]} 25. Re2 {[%emt 0:01:08]} Rcd8 {[%emt 0:00:53]} 26. Rd2 {[%emt 0:00:18]} Ne7 {[%emt 0:00:10]} 27. Rxd8 {[%emt 0:01:16]} Rxd8 {[%emt 0:00:03]} 28. Qe1 {[%emt 0:00:11]} e4 {[%emt 0:01:18]} 29. Ng5 {[%emt 0:00:15]} Re8 {[%emt 0:01:47]} 30. Qe2 {[%emt 0:02:07]} Nd5 {[%emt 0:00:57]} 31. Qc4 {[%emt 0:00:05]} Bxg5 {[%emt 0:00:47]} 32. Qxd5 {[%emt 0:00:38]} Bxc1 {[%emt 0:00:40]} 33. Rxc1 {[%emt 0:00:12]} Qxb2 {[%emt 0:00:04]} 34. Re1 {[%emt 0:00:17]} Bg6 {[%emt 0:00:14]} 35. Re3 {[%emt 0:00:27]} Rf8 {[%emt 0:00:12]} 36. f4 {[%emt 0:00:25]} exf3 {[%emt 0:00:07]} 37. Rxf3 {[%emt 0:00:04]} Qb6+ {[%emt 0:00:05]} 38. Kh1 {[%emt 0:00:15]} Qb1+ {[%emt 0:00:08]} 39. Bf1 {[%emt 0:00:02]} Be4 {[%emt 0:00:04]} 40. Kg1 {[%emt 0:00:32]} Bxf3 {[%emt 0:00:07]} 41. Qd6 {[%emt 0:00:07]} Qb6+ {[%emt 0:00:02]} 0-1

[Event "European Online Club-ch-A 2021"]
[Site "Online"]
[Date "2021.03.27"]
[Round "4.7"]
[White "Emir, Doruk"]
[Black "Babiy, Igor"]
[Result "1/2-1/2"]
[ECO "D02"]
[WhiteElo "1852"]
[BlackElo "2241"]
[Annotator "NA"]
[PlyCount "234"]
[EventDate "2021.03.27"]
[EventType "team-tourn"]
[EventCountry "NET"]
[SourceTitle "playchess.com"]
[Source "ChessBase"]
[SourceQuality "1"]
[TimeControl "900+5"]

1. Nf3 {[%emt 0:00:00]} d5 {[%emt 0:00:07]} 2. d4 {[%emt 0:00:15]} Nf6 {[%emt 0:00:14]} 3. Bf4 {[%emt 0:00:04]} c5 {[%emt 0:00:29]} 4. e3 {[%emt 0:00:17]} Nc6 {[%emt 0:00:22]} 5. Nc3 {[%emt 0:01:22]} a6 {[%emt 0:01:12]} 6. Be2 {[%emt 0:01:08]} Bg4 {[%emt 0:01:26]} 7. O-O {[%emt 0:00:11]} e6 {[%emt 0:00:02]} 8. Ne5 {[%emt 0:02:47]} Bxe2 {[%emt 0:00:05]} 9. Nxe2 {[%emt 0:00:03]} Rc8 {[%emt 0:00:41]} 10. Ng3 {[%emt 0:00:38]} cxd4 {[%emt 0:00:45]} 11. exd4 {[%emt 0:00:13]} Bd6 {[%emt 0:00:18]} 12. c3 {[%emt 0:00:32]} O-O {[%emt 0:00:21]} 13. Qe2 {[%emt 0:00:35]} Ne7 {[%emt 0:00:31]} 14. Bg5 {[%emt 0:00:37]} Ng6 {[%emt 0:00:10]} 15. f4 {[%emt 0:01:00]} Be7 {[%emt 0:00:06]} 16. f5 {[%emt 0:00:15]} exf5 {[%emt 0:01:24]} 17. Nxf5 {[%emt 0:00:18]} Ne4 {[%emt 0:00:21]} 18. Bxe7 {[%emt 0:01:43]} Nxe7 {[%emt 0:00:03]} 19. Qg4 {[%emt 0:00:18]} Nxf5 {[%emt 0:00:02]} 20. Rxf5 {[%emt 0:00:07]} f6 {[%emt 0:01:20]} 21. Raf1 {[%emt 0:00:50]} Qd6 {[%emt 0:00:24]} 22. Nd3 {[%emt 0:00:39]} Rcd8 {[%emt 0:01:10]} 23. Nf4 {[%emt 0:00:31]} Qc6 {[%emt 0:00:04]} 24. Rh5 {[%emt 0:00:19]} Rf7 {[%emt 0:00:36]} 25. Rxh7 {[%emt 0:00:37]} Kxh7 {[%emt 0:00:18]} 26. Qh5+ {[%emt 0:00:05]} Kg8 {[%emt 0:00:02]} 27. Ng6 {[%emt 0:00:01]} Rfd7 {[%emt 0:00:33]} 28. Qh8+ {[%emt 0:00:07]} Kf7 {[%emt 0:00:02]} 29. Ne5+ {[%emt 0:00:01]} Ke6 {[%emt 0:00:39]} 30. Qh3+ {[%emt 0:00:27]} Kd6 {[%emt 0:00:02]} 31. Nxc6 {[%emt 0:00:07]} Kxc6 {[%emt 0:00:11]} 32. Re1 {[%emt 0:00:04]} Re7 {[%emt 0:00:15]} 33. Qd3 {[%emt 0:00:25]} Rde8 {[%emt 0:00:28]} 34. c4 {[%emt 0:00:15]} dxc4 {[%emt 0:00:01]} 35. Qxc4+ {[%emt 0:00:04]} Kd7 {[%emt 0:00:02]} 36. Rc1 {[%emt 0:00:09]} Rd8 {[%emt 0:00:23]} 37. Re1 {[%emt 0:00:42]} Rde8 {[%emt 0:00:03]} 38. Qd5+ {[%emt 0:00:09]} Nd6 {[%emt 0:00:03]} 39. Rc1 {[%emt 0:00:05]} Re2 {[%emt 0:00:21]} 40. Qf3 {[%emt 0:00:12]} R8e4 {[%emt 0:00:19]} 41. Qc3 {[%emt 0:00:07]} Ke6 {[%emt 0:00:19]} 42. d5+ {[%emt 0:00:04]} Kxd5 {[%emt 0:00:15]} 43. Qc7 {[%emt 0:00:04]} Re1+ {[%emt 0:00:59]} 44. Rxe1 {[%emt 0:00:03]} Rxe1+ {[%emt 0:00:00]} 45. Kf2 {[%emt 0:00:02]} Rd1 {[%emt 0:00:16]} 46. Kg3 {[%emt 0:00:12]} Rd3+ {[%emt 0:00:08]} 47. Kg4 {[%emt 0:00:02]} g6 {[%emt 0:00:14]} 48. g3 {[%emt 0:00:04]} Rd4+ {[%emt 0:00:19]} 49. Kh3 {[%emt 0:00:03]} g5 {[%emt 0:00:00]} 50. Qc2 {[%emt 0:00:07]} g4+ {[%emt 0:00:02]} 51. Kh4 {[%emt 0:00:02]} f5 {[%emt 0:00:00]} 52. Kg5 {[%emt 0:00:07]} b5 {[%emt 0:00:26]} 53. a3 {[%emt 0:00:05]} a5 {[%emt 0:00:05]} 54. Qb3+ {[%emt 0:00:01]} Kc5 {[%emt 0:00:04]} 55. Qc3+ {[%emt 0:00:03]} Kd5 {[%emt 0:00:13]} 56. Qxa5 {[%emt 0:00:05]} Ke6 {[%emt 0:00:06]} 57. Qb6 {[%emt 0:00:07]} Kd5 {[%emt 0:00:05]} 58. b4 {[%emt 0:00:04]} Rc4 {[%emt 0:00:07]} 59. a4 {[%emt 0:00:06]} bxa4 {[%emt 0:00:05]} 60. Qa5+ {[%emt 0:00:01]} Ke4 {[%emt 0:00:15]} 61. Qxa4 {[%emt 0:00:05]} Kd5 {[%emt 0:00:04]} 62. Qa8+ {[%emt 0:00:06]} Kd4 {[%emt 0:00:03]} 63. Qd8 {[%emt 0:00:05]} Kd5 {[%emt 0:00:04]} 64. Qb6 {[%emt 0:00:07]} Ke6 {[%emt 0:00:06]} 65. Qb8 {[%emt 0:00:14]} Rc2 {[%emt 0:00:08]} 66. b5 {[%emt 0:00:04]} Rb2 {[%emt 0:00:04]} 67. b6 {[%emt 0:00:01]} Rb5 {[%emt 0:00:02]} 68. Qg8+ {[%emt 0:00:09]} Ke5 {[%emt 0:00:02]} 69. Qg7+ {[%emt 0:00:02]} Kd5 {[%emt 0:00:04]} 70. Qg6 {[%emt 0:00:06]} Kc6 {[%emt 0:00:03]} 71. Kh4 {[%emt 0:00:05]} Rxb6 {[%emt 0:00:02]} 72. Qg5 {[%emt 0:00:04]} Rb5 {[%emt 0:00:02]} 73. Qc1+ {[%emt 0:00:03]} Kd5 {[%emt 0:00:02]} 74. Qf4 {[%emt 0:00:03]} Rc5 {[%emt 0:00:04]} 75. Kh5 {[%emt 0:00:04]} Rc4 {[%emt 0:00:02]} 76. Qh6 {[%emt 0:00:03]} Rc2 {[%emt 0:00:07]} 77. Kg6 {[%emt 0:00:04]} Re2 {[%emt 0:00:05]} 78. Kh7 {[%emt 0:00:15]} Re7+ {[%emt 0:00:05]} 79. Kg8 {[%emt 0:00:01]} Re8+ {[%emt 0:00:05]} 80. Kg7 {[%emt 0:00:02]} Re2 {[%emt 0:00:12]} 81. Qh4 {[%emt 0:00:10]} Re6 {[%emt 0:00:15]} 82. Qd8 {[%emt 0:00:04]} Re4 {[%emt 0:00:07]} 83. Qa5+ {[%emt 0:00:02]} Ke6 {[%emt 0:00:03]} 84. Qa2+ {[%emt 0:00:03]} Rc4 {[%emt 0:00:07]} 85. Kh6 {[%emt 0:00:07]} Kf6 {[%emt 0:00:06]} 86. Qb2+ {[%emt 0:00:06]} Ke6 {[%emt 0:00:04]} 87. Kg6 {[%emt 0:00:03]} Re4 {[%emt 0:00:03]} 88. Qb3+ {[%emt 0:00:08]} Ke5 {[%emt 0:00:03]} 89. Qc3+ {[%emt 0:00:02]} Kd5 {[%emt 0:00:03]} 90. Qd3+ {[%emt 0:00:03]} Kc6 {[%emt 0:00:04]} 91. Qc3+ {[%emt 0:00:02]} Rc4 {[%emt 0:00:07]} 92. Qd3 {[%emt 0:00:05]} Kc5 {[%emt 0:00:05]} 93. Qe3+ {[%emt 0:00:04]} Kd5 {[%emt 0:00:02]} 94. Qd3+ {[%emt 0:00:02]} Rd4 {[%emt 0:00:03]} 95. Qb3+ {[%emt 0:00:02]} Ke4 {[%emt 0:00:02]} 96. Qe6+ {[%emt 0:00:03]} Kf3 {[%emt 0:00:06]} 97. Qe1 {[%emt 0:00:03]} Rd3 {[%emt 0:00:06]} 98. Qf1+ {[%emt 0:00:02]} Ke3 {[%emt 0:00:02]} 99. Kg5 {[%emt 0:00:05]} Rd4 {[%emt 0:00:10]} 100. Qe1+ {[%emt 0:00:05]} Kd3 {[%emt 0:00:03]} 101. Kf6 {[%emt 0:00:06]} Kc4 {[%emt 0:00:07]} 102. Qe6+ {[%emt 0:00:04]} Kd3 {[%emt 0:00:06]} 103. Qb3+ {[%emt 0:00:03]} Ke2 {[%emt 0:00:12]} 104. Qb2+ {[%emt 0:00:06]} Rd2 {[%emt 0:00:04]} 105. Qa3 {[%emt 0:00:03]} Ke1 {[%emt 0:00:07]} 106. Kg6 {[%emt 0:00:03]} Ke2 {[%emt 0:00:04]} 107. Qa6+ {[%emt 0:00:03]} Kf2 {[%emt 0:00:04]} 108. Qa5 {[%emt 0:00:10]} Ke2 {[%emt 0:00:04]} 109. Qe5+ {[%emt 0:00:03]} Kf2 {[%emt 0:00:03]} 110. Qf4+ {[%emt 0:00:02]} Ke2 {[%emt 0:00:03]} 111. Kh5 {[%emt 0:00:03]} Ke1 {[%emt 0:00:05]} 112. Qe3+ {[%emt 0:00:05]} Kd1 {[%emt 0:00:05]} 113. Qg1+ {[%emt 0:00:05]} Ke2 {[%emt 0:00:05]} 114. Qg2+ {[%emt 0:00:03]} Ke3 {[%emt 0:00:03]} 115. Qg1+ {[%emt 0:00:03]} Ke2 {[%emt 0:00:03]} 116. Qg2+ {[%emt 0:00:02]} Ke3 {[%emt 0:00:03]} 117. Qg1+ {[%emt 0:00:03]} Ke2 {[%emt 0:00:02]} 1/2-1/2

[Event "European Online Club-ch-A 2021"]
[Site "Online"]
[Date "2021.03.27"]
[Round "4.8"]
[White "Hulka, Valentyn"]
[Black "Tinmaz, Kerem"]
[Result "1-0"]
[ECO "B06"]
[WhiteElo "2089"]
[BlackElo "1614"]
[Annotator "NA"]
[PlyCount "37"]
[EventDate "2021.03.27"]
[EventType "team-tourn"]
[EventCountry "NET"]
[SourceTitle "playchess.com"]
[Source "ChessBase"]
[SourceQuality "1"]
[TimeControl "900+5"]

1. e4 {[%emt 0:00:00]} g6 {[%emt 0:00:03]} 2. d4 {[%emt 0:00:03]} Bg7 {[%emt 0:00:02]} 3. Nf3 {[%emt 0:00:02]} d6 {[%emt 0:00:04]} 4. Bc4 {[%emt 0:00:01]} e6 {[%emt 0:00:02]} 5. Bb3 {[%emt 0:00:11]} Ne7 {[%emt 0:00:04]} 6. O-O {[%emt 0:00:03]} O-O {[%emt 0:00:03]} 7. Re1 {[%emt 0:00:03]} b6 {[%emt 0:00:15]} 8. a4 {[%emt 0:00:04]} d5 {[%emt 0:00:16]} 9. Nc3 {[%emt 0:01:21]} dxe4 {[%emt 0:01:13]} 10. Nxe4 {[%emt 0:00:06]} a5 {[%emt 0:00:20]} 11. Bg5 {[%emt 0:00:19]} Nd7 {[%emt 0:00:37]} 12. d5 {[%emt 0:02:57]} exd5 {[%emt 0:05:01]} 13. Bxd5 {[%emt 0:01:08]} Rb8 {[%emt 0:01:37]} 14. Nd4 {[%emt 0:00:54]} Bxd4 {[%emt 0:02:51]} 15. Qxd4 {[%emt 0:00:08]} c5 {[%emt 0:01:29]} 16. Qd2 {[%emt 0:00:58]} Bb7 {[%emt 0:00:52]} 17. Bxb7 {[%emt 0:00:18]} Rxb7 {[%emt 0:00:54]} 18. Rad1 {[%emt 0:00:02]} Re8 {[%emt 0:00:31]} 19. Nd6 {[%emt 0:00:12]} 1-0

[Event "European Online Club-ch-A 2021"]
[Site "Online"]
[Date "2021.03.27"]
[Round "4.9"]
[White "Finek, Vaclav"]
[Black "Jakubowski, Krzysztof"]
[Result "1/2-1/2"]
[ECO "E59"]
[WhiteElo "2361"]
[BlackElo "2497"]
[Annotator "ChessBase"]
[PlyCount "80"]
[EventDate "2021.03.27"]
[EventType "team-tourn"]
[EventCountry "NET"]
[SourceTitle "playchess.com"]
[Source "ChessBase"]
[SourceQuality "1"]
[TimeControl "900+5"]

1. d4 {[%emt 0:00:00]} Nf6 {[%emt 0:00:08]} 2. c4 {[%emt 0:00:03]} e6 {[%emt 0:00:03]} 3. Nf3 {[%emt 0:00:02]} d5 {[%emt 0:00:03]} 4. Nc3 {[%emt 0:00:03]} Bb4 {[%emt 0:00:03]} 5. e3 {[%emt 0:00:12]} O-O {[%emt 0:00:05]} 6. Be2 {[%emt 0:00:05]} dxc4 {[%emt 0:00:15]} 7. Bxc4 {[%emt 0:00:05]} c5 {[%emt 0:00:05]} 8. O-O {[%emt 0:00:10]} Nc6 {[%emt 0:00:05]} 9. a3 {[%emt 0:01:02]} Bxc3 {[%emt 0:00:14]} 10. bxc3 {[%emt 0:00:02]} Qc7 {[%emt 0:00:07]} 11. Bd3 {[%emt 0:00:16]} e5 {[%emt 0:01:24]} 12. dxe5 {[%emt 0:01:17]} Nxe5 {[%emt 0:00:19]} 13. Be2 {[%emt 0:00:10]} Bf5 {[%emt 0:01:06]} 14. Qa4 {[%emt 0:01:04]} Be4 {[%emt 0:01:05]} 15. Bb2 {[%emt 0:01:54]} b5 {[%emt 0:01:11]} 16. Qb3 {[%emt 0:00:55]} c4 {[%emt 0:00:34]} 17. Qa2 {[%emt 0:00:04]} Nxf3+ {[%emt 0:00:58]} 18. gxf3 {[%emt 0:00:10]} Bc2 {[%emt 0:00:56]} 19. Bc1 {[%emt 0:00:29]} Bb3 {[%emt 0:00:14]} 20. Qb1 {[%emt 0:00:18]} Qe5 {[%emt 0:00:51]} 21. e4 {[%emt 0:01:12]} Rfd8 {[%emt 0:00:52]} 22. Be3 {[%emt 0:00:23]} Qxc3 {[%emt 0:00:10]} 23. Qc1 {[%emt 0:01:05]} Qxc1 {[%emt 0:01:34]} 24. Rfxc1 {[%emt 0:00:04]} Nd7 {[%emt 0:00:05]} 25. f4 {[%emt 0:00:20]} Nb6 {[%emt 0:00:31]} 26. Bf3 {[%emt 0:00:48]} g6 {[%emt 0:00:50]} 27. h4 {[%emt 0:00:13]} Rab8 {[%emt 0:00:30]} 28. h5 {[%emt 0:01:17]} a5 {[%emt 0:00:03]} 29. Be2 {[%emt 0:00:29]} Na4 {[%emt 0:00:06]} 30. Rab1 {[%emt 0:00:33]} Rb7 {[%emt 0:00:24]} 31. hxg6 {[%emt 0:00:17]} hxg6 {[%emt 0:00:03]} 32. Kg2 {[%emt 0:00:16]} Rbd7 {[%emt 0:00:26]} 33. f3 {[%emt 0:00:48]} Rd2 {[%emt 0:00:23]} 34. Bxd2 {[%emt 0:00:08]} Rxd2 {[%emt 0:00:01]} 35. Kf1 {[%emt 0:00:01]} Kf8 {[%emt 0:00:48]} 36. Ke1 {[%emt 0:00:07]} Ra2 {[%emt 0:00:05]} 37. Ra1 {[%emt 0:00:03]} Rb2 {[%emt 0:00:09]} 38. Rab1 {[%emt 0:00:03]} Ra2 {[%emt 0:00:19]} 39. Ra1 {[%emt 0:00:04]} Rb2 {[%emt 0:00:06]} 40. Rab1 {[%emt 0:00:05]} Ra2 {[%emt 0:00:27]} 1/2-1/2

[Event "European Online Club-ch-A 2021"]
[Site "Online"]
[Date "2021.03.27"]
[Round "4.10"]
[White "Schmidek, Emil"]
[Black "Nemec, Jachym"]
[Result "1-0"]
[ECO "D85"]
[WhiteElo "2402"]
[BlackElo "2229"]
[Annotator "NA"]
[PlyCount "73"]
[EventDate "2021.03.27"]
[EventType "team-tourn"]
[EventCountry "NET"]
[SourceTitle "playchess.com"]
[Source "ChessBase"]
[SourceQuality "1"]
[TimeControl "900+5"]

1. d4 {[%emt 0:00:00]} Nf6 {[%emt 0:00:03]} 2. c4 {[%emt 0:00:04]} g6 {[%emt 0:00:02]} 3. Nc3 {[%emt 0:00:05]} d5 {[%emt 0:00:02]} 4. cxd5 {[%emt 0:00:02]} Nxd5 {[%emt 0:00:02]} 5. e4 {[%emt 0:00:00]} Nxc3 {[%emt 0:00:02]} 6. bxc3 {[%emt 0:00:00]} Bg7 {[%emt 0:00:02]} 7. Ba3 {[%emt 0:00:02]} O-O {[%emt 0:00:13]} 8. Nf3 {[%emt 0:00:03]} b6 {[%emt 0:00:24]} 9. Bd3 {[%emt 0:00:02]} c5 {[%emt 0:00:11]} 10. O-O {[%emt 0:00:02]} Bb7 {[%emt 0:00:48]} 11. Re1 {[%emt 0:00:25]} Nd7 {[%emt 0:00:04]} 12. e5 {[%emt 0:00:14]} e6 {[%emt 0:00:16]} 13. Qe2 {[%emt 0:00:36]} Qc7 {[%emt 0:00:20]} 14. Rac1 {[%emt 0:00:07]} Rfd8 {[%emt 0:00:04]} 15. Ng5 {[%emt 0:01:30]} Bf8 {[%emt 0:00:47]} 16. Be4 {[%emt 0:00:48]} Bh6 {[%emt 0:01:40]} 17. h4 {[%emt 0:01:53]} Bxe4 {[%emt 0:00:58]} 18. Qxe4 {[%emt 0:00:07]} Rac8 {[%emt 0:00:09]} 19. Qf3 {[%emt 0:00:26]} Bxg5 {[%emt 0:00:06]} 20. hxg5 {[%emt 0:00:05]} Qc6 {[%emt 0:00:18]} 21. Qf4 {[%emt 0:00:24]} Qa4 {[%emt 0:00:20]} 22. Bb2 {[%emt 0:00:13]} Qxa2 {[%emt 0:00:03]} 23. Re2 {[%emt 0:01:34]} cxd4 {[%emt 0:00:21]} 24. cxd4 {[%emt 0:00:06]} b5 {[%emt 0:00:25]} 25. Ra1 {[%emt 0:01:28]} Qc4 {[%emt 0:00:17]} 26. Re3 {[%emt 0:00:04]} Rc7 {[%emt 0:00:26]} 27. Rc3 {[%emt 0:00:53]} Qxc3 {[%emt 0:00:33]} 28. Bxc3 {[%emt 0:00:00]} Rxc3 {[%emt 0:00:02]} 29. Rxa7 {[%emt 0:00:03]} Rc4 {[%emt 0:00:43]} 30. Rb7 {[%emt 0:02:24]} b4 {[%emt 0:00:04]} 31. g3 {[%emt 0:00:07]} Rc6 {[%emt 0:01:19]} 32. d5 {[%emt 0:01:44]} exd5 {[%emt 0:00:06]} 33. Qxb4 {[%emt 0:00:07]} Re6 {[%emt 0:00:42]} 34. f4 {[%emt 0:01:20]} Nf8 {[%emt 0:00:04]} 35. Qa5 {[%emt 0:00:05]} Rc8 {[%emt 0:00:04]} 36. Qxd5 {[%emt 0:00:07]} Rec6 {[%emt 0:00:14]} 37. Qxf7+ {[%emt 0:00:03]} 1-0

[Event "European Online Club-ch-A 2021"]
[Site "Online"]
[Date "2021.03.27"]
[Round "4.11"]
[White "Brozka, Karel"]
[Black "Wintzer, Joachim"]
[Result "0-1"]
[ECO "E30"]
[WhiteElo "2080"]
[BlackElo "2274"]
[Annotator "NA"]
[PlyCount "82"]
[EventDate "2021.03.27"]
[EventType "team-tourn"]
[EventCountry "NET"]
[SourceTitle "playchess.com"]
[Source "ChessBase"]
[SourceQuality "1"]
[TimeControl "900+5"]

1. d4 {[%emt 0:00:00]} e6 {[%emt 0:00:07]} 2. c4 {[%emt 0:00:08]} Nf6 {[%emt 0:00:05]} 3. Nc3 {[%emt 0:00:04]} Bb4 {[%emt 0:00:19]} 4. Bg5 {[%emt 0:00:06]} c5 {[%emt 0:00:16]} 5. d5 {[%emt 0:00:05]} exd5 {[%emt 0:00:08]} 6. cxd5 {[%emt 0:00:04]} d6 {[%emt 0:00:01]} 7. e3 {[%emt 0:00:25]} Nbd7 {[%emt 0:00:32]} 8. Bd3 {[%emt 0:00:16]} Qa5 {[%emt 0:00:48]} 9. Nge2 {[%emt 0:01:16]} Nxd5 {[%emt 0:00:29]} 10. O-O {[%emt 0:00:19]} Bxc3 {[%emt 0:00:17]} 11. Nxc3 {[%emt 0:00:09]} Nxc3 {[%emt 0:00:04]} 12. bxc3 {[%emt 0:00:04]} c4 {[%emt 0:00:03]} 13. Bxc4 {[%emt 0:00:52]} Qxg5 {[%emt 0:00:05]} 14. Qxd6 {[%emt 0:00:12]} Qe7 {[%emt 0:00:00]} 15. Qg3 {[%emt 0:00:35]} O-O {[%emt 0:00:04]} 16. Rfd1 {[%emt 0:00:03]} Nf6 {[%emt 0:00:06]} 17. Rd4 {[%emt 0:00:20]} Be6 {[%emt 0:00:20]} 18. Bxe6 {[%emt 0:00:36]} Qxe6 {[%emt 0:00:04]} 19. h4 {[%emt 0:00:03]} Rac8 {[%emt 0:00:04]} 20. Rb1 {[%emt 0:00:08]} b6 {[%emt 0:00:07]} 21. Rc1 {[%emt 0:00:17]} Ne4 {[%emt 0:00:21]} 22. Qf3 {[%emt 0:00:36]} Nxc3 {[%emt 0:00:10]} 23. Kh2 {[%emt 0:00:04]} Rc5 {[%emt 0:00:25]} 24. g4 {[%emt 0:00:37]} Nxa2 {[%emt 0:00:25]} 25. Rg1 {[%emt 0:00:10]} Rc4 {[%emt 0:00:10]} 26. Rd5 {[%emt 0:00:07]} Nc3 {[%emt 0:00:04]} 27. Rf5 {[%emt 0:00:04]} a5 {[%emt 0:00:21]} 28. h5 {[%emt 0:00:10]} g6 {[%emt 0:00:24]} 29. hxg6 {[%emt 0:00:08]} hxg6 {[%emt 0:00:03]} 30. Rf6 {[%emt 0:00:02]} Qe5+ {[%emt 0:00:02]} 31. Rg3 {[%emt 0:00:05]} Ne4 {[%emt 0:00:04]} 32. Rf4 {[%emt 0:00:10]} Nxg3 {[%emt 0:00:28]} 33. Rxc4 {[%emt 0:00:03]} Ne4+ {[%emt 0:00:06]} 34. Kg2 {[%emt 0:00:36]} Ng5 {[%emt 0:00:13]} 35. Qc6 {[%emt 0:00:11]} Qe6 {[%emt 0:00:22]} 36. Qb5 {[%emt 0:00:09]} Ne4 {[%emt 0:00:17]} 37. Rd4 {[%emt 0:00:32]} Qxg4+ {[%emt 0:00:23]} 38. Kf1 {[%emt 0:00:05]} Rc8 {[%emt 0:00:06]} 39. Qb2 {[%emt 0:00:04]} Qh3+ {[%emt 0:01:34]} 40. Ke2 {[%emt 0:00:20]} Ng3+ {[%emt 0:00:17]} 41. Kd2 {[%emt 0:00:31]} Qf1 {[%emt 0:00:16]} 0-1

[Event "European Online Club-ch-A 2021"]
[Site "Online"]
[Date "2021.03.27"]
[Round "4.12"]
[White "Noetzel, Felix"]
[Black "Smolik, Jachym"]
[Result "0-1"]
[ECO "B15"]
[WhiteElo "2263"]
[BlackElo "2073"]
[Annotator "NA"]
[PlyCount "82"]
[EventDate "2021.03.27"]
[EventType "team-tourn"]
[EventCountry "NET"]
[SourceTitle "playchess.com"]
[Source "ChessBase"]
[SourceQuality "1"]
[TimeControl "900+5"]

1. e4 {[%emt 0:00:00]} c6 {[%emt 0:00:03]} 2. d4 {[%emt 0:00:03]} d5 {[%emt 0:00:01]} 3. Nc3 {[%emt 0:00:02]} dxe4 {[%emt 0:00:03]} 4. Nxe4 {[%emt 0:00:02]} Nf6 {[%emt 0:00:01]} 5. Ng3 {[%emt 0:00:07]} g6 {[%emt 0:00:11]} 6. Nf3 {[%emt 0:00:29]} Bg7 {[%emt 0:00:05]} 7. c3 {[%emt 0:00:07]} O-O {[%emt 0:00:41]} 8. Bc4 {[%emt 0:00:22]} Nbd7 {[%emt 0:00:43]} 9. O-O {[%emt 0:00:06]} Qc7 {[%emt 0:00:48]} 10. Re1 {[%emt 0:00:09]} e6 {[%emt 0:00:05]} 11. Bd2 {[%emt 0:02:01]} a6 {[%emt 0:00:29]} 12. Qc1 {[%emt 0:00:10]} b5 {[%emt 0:00:21]} 13. Bb3 {[%emt 0:00:04]} c5 {[%emt 0:00:18]} 14. Bh6 {[%emt 0:00:21]} Bb7 {[%emt 0:00:40]} 15. Bxg7 {[%emt 0:01:41]} Kxg7 {[%emt 0:00:12]} 16. Ne5 {[%emt 0:00:45]} cxd4 {[%emt 0:00:35]} 17. cxd4 {[%emt 0:00:02]} Qxc1 {[%emt 0:00:12]} 18. Raxc1 {[%emt 0:00:00]} Rac8 {[%emt 0:00:10]} 19. f3 {[%emt 0:00:58]} Nb6 {[%emt 0:00:07]} 20. a3 {[%emt 0:02:17]} Rfd8 {[%emt 0:00:10]} 21. Rxc8 {[%emt 0:01:13]} Rxc8 {[%emt 0:00:06]} 22. Nxf7 {[%emt 0:00:34]} Kxf7 {[%emt 0:00:10]} 23. Bxe6+ {[%emt 0:00:10]} Kf8 {[%emt 0:00:16]} 24. Bxc8 {[%emt 0:00:05]} Bxc8 {[%emt 0:00:09]} 25. Ne4 {[%emt 0:00:12]} Nxe4 {[%emt 0:00:25]} 26. fxe4 {[%emt 0:00:08]} Nc4 {[%emt 0:01:00]} 27. Re2 {[%emt 0:01:28]} Bg4 {[%emt 0:00:12]} 28. Rc2 {[%emt 0:01:02]} Bd1 {[%emt 0:00:45]} 29. Rf2+ {[%emt 0:01:04]} Ke7 {[%emt 0:00:02]} 30. Kf1 {[%emt 0:01:10]} Bc2 {[%emt 0:01:57]} 31. e5 {[%emt 0:00:28]} Bf5 {[%emt 0:00:45]} 32. Ke2 {[%emt 0:00:10]} Nxb2 {[%emt 0:00:10]} 33. Kf3 {[%emt 0:00:09]} Nc4 {[%emt 0:00:05]} 34. Ra2 {[%emt 0:00:02]} a5 {[%emt 0:00:21]} 35. g4 {[%emt 0:00:01]} Bd3 {[%emt 0:00:34]} 36. Ra1 {[%emt 0:00:12]} Ke6 {[%emt 0:00:36]} 37. Rd1 {[%emt 0:00:04]} Bc2 {[%emt 0:00:05]} 38. Rc1 {[%emt 0:00:02]} Nxa3 {[%emt 0:00:16]} 39. Ke3 {[%emt 0:00:07]} b4 {[%emt 0:00:10]} 40. Kd2 {[%emt 0:00:02]} b3 {[%emt 0:00:06]} 41. Kc3 {[%emt 0:00:09]} Nb5+ {[%emt 0:00:02]} 0-1